[Event "Turkish Second League 2019"]
[Site "Konya"]
[Date "2019.07.27"]
[Round "8"]
[White "Abdimanoglu, Beste Basak"]
[Black "Ozaltun, Ecem"]
[Result "1-0"]
[ECO "A40"]
[WhiteElo "1898"]
[BlackElo "1551"]
[Annotator "NA"]
[PlyCount "131"]
[EventDate "2019.07.22"]
[EventType "team-tourn"]
[EventCountry "TUR"]
[SourceTitle "playchess.com"]
[Source "ChessBase"]
[SourceQuality "1"]
[TimeControl "5400+30"]

1. d4 e6 {[%emt 0:00:30]} 2. Nf3 {[%emt 0:00:00]} f5 {[%emt 0:00:30]} 3. c4 {[%emt 0:01:30]} Nf6 {[%emt 0:03:30]} 4. a3 {[%emt 0:04:30]} b6 {[%emt 0:02:30]} 5. Nc3 {[%emt 0:13:30]} Bb7 {[%emt 0:01:30]} 6. e3 {[%emt 0:00:30]} Be7 {[%emt 0:06:30]} 7. Be2 {[%emt 0:02:30]} O-O {[%emt 0:04:30]} 8. O-O {[%emt 0:06:30]} Na6 {[%emt 0:14:30]} 9. b4 {[%emt 0:10:30]} c5 {[%emt 0:07:30]} 10. bxc5 {[%emt 0:07:30]} bxc5 {[%emt 0:00:30]} 11. Rb1 {[%emt 0:02:30]} Qc8 {[%emt 0:08:30]} 12. Ne1 {[%emt 0:11:30]} Ne4 {[%emt 0:03:30]} 13. Nxe4 {[%emt 0:10:30]} Bxe4 {[%emt 0:02:30]} 14. Ra1 {[%emt 0:00:30]} Rf6 {[%emt 0:01:30]} 15. d5 {[%emt 0:02:30]} Rh6 {[%emt 0:12:30]} 16. dxe6 {[%emt 0:08:24]} dxe6 {[%emt 0:01:30]} 17. Bf3 {[%emt 0:01:35]} Qc7 {[%emt 0:05:30]} 18. g3 {[%emt 0:01:21]} Rd8 {[%emt 0:02:56]} 19. Qe2 {[%emt 0:01:39]} Qc6 {[%emt 0:07:42]} 20. Ra2 {[%emt 0:02:38]} e5 {[%emt 0:03:06]} 21. Rd2 {[%emt 0:03:32]} Rf8 {[%emt 0:00:22]} 22. Bb2 {[%emt 0:01:28]} Qe6 {[%emt 0:00:30]} 23. Bxe4 {[%emt 0:04:03]} fxe4 {[%emt 0:00:07]} 24. f4 {[%emt 0:00:15]} exf3 {[%emt 0:01:39]} 25. Nxf3 {[%emt 0:00:46]} Bf6 {[%emt 0:03:00]} 26. e4 {[%emt 0:00:34]} Nc7 {[%emt 0:01:42]} 27. Qd3 {[%emt 0:00:31]} Rd8 {[%emt 0:00:30]} 28. Qe2 {[%emt 0:01:27]} Rxd2 {[%emt 0:00:47]} 29. Nxd2 {[%emt 0:00:17]} Rg6 {[%emt 0:00:28]} 30. Qf2 {[%emt 0:01:00]} Qd6 {[%emt 0:01:17]} 31. Nf3 {[%emt 0:00:18]} h5 {[%emt 0:01:33]} 32. Kh1 {[%emt 0:00:16]} Qd3 {[%emt 0:00:44]} 33. Qg2 {[%emt 0:00:57]} Qxe4 {[%emt 0:00:45]} 34. Nxe5 {[%emt 0:00:02]} Qxg2+ {[%emt 0:01:13]} 35. Kxg2 {[%emt 0:00:30]} Rg5 {[%emt 0:00:09]} 36. Nf3 {[%emt 0:01:01]} Rf5 {[%emt 0:00:10]} 37. Bxf6 {[%emt 0:00:10]} Rxf6 {[%emt 0:00:49]} 38. Rd1 {[%emt 0:00:17]} Rf8 {[%emt 0:01:08]} 39. Rd7 {[%emt 0:00:13]} Rc8 {[%emt 0:00:12]} 40. Ng5 {[%emt 0:00:20]} Kf8 {[%emt 0:00:54]} 41. Rxc7 {[%emt 0:00:03]} Rxc7 {[%emt 0:00:05]} 42. Ne6+ {[%emt 0:00:30]} Ke7 {[%emt 0:00:12]} 43. Nxc7 {[%emt 0:00:00]} Kd6 {[%emt 0:00:09]} 44. Nb5+ {[%emt 0:00:00]} Ke5 {[%emt 0:00:08]} 45. Nxa7 {[%emt 0:00:30]} Kd4 {[%emt 0:00:07]} 46. Kf3 {[%emt 0:00:50]} Kxc4 {[%emt 0:00:05]} 47. Ke4 {[%emt 0:00:19]} Kb3 {[%emt 0:00:54]} 48. Nb5 {[%emt 0:00:14]} Ka4 {[%emt 0:00:29]} 49. Nd6 {[%emt 0:00:44]} Kxa3 {[%emt 0:00:38]} 50. Kf5 {[%emt 0:00:05]} Kb4 {[%emt 0:00:29]} 51. Kg5 {[%emt 0:00:23]} Kc3 {[%emt 0:00:20]} 52. Kxh5 {[%emt 0:00:51]} Kd4 {[%emt 0:00:08]} 53. Kg6 {[%emt 0:01:13]} Kd5 {[%emt 0:00:09]} 54. Nf5 {[%emt 0:00:16]} Ke5 {[%emt 0:00:47]} 55. Ne3 {[%emt 0:01:03]} Kd4 {[%emt 0:00:18]} 56. Nc2+ {[%emt 0:00:33]} Kc3 {[%emt 0:00:18]} 57. Na3 {[%emt 0:00:49]} Kb3 {[%emt 0:00:28]} 58. Nb5 {[%emt 0:00:22]} c4 {[%emt 0:01:35]} 59. Kxg7 {[%emt 0:00:55]} Kb4 {[%emt 0:00:20]} 60. Nc7 {[%emt 0:00:09]} Kc5 {[%emt 0:00:36]} 61. Ne6+ {[%emt 0:00:14]} Kb4 {[%emt 0:00:30]} 62. Nf4 {[%emt 0:00:27]} Kb3 {[%emt 0:00:56]} 63. Nd5 {[%emt 0:00:17]} Ka3 {[%emt 0:00:47]} 64. h4 {[%emt 0:00:14]} Ka4 {[%emt 0:00:49]} 65. h5 {[%emt 0:00:13]} Kb5 {[%emt 0:00:00]} 66. h6 {[%emt 0:00:13]} 1-0

[Event "Turkish Second League 2019"]
[Site "Konya"]
[Date "2019.07.27"]
[Round "8"]
[White "Sahutoglu, Mehmet Ibrahim"]
[Black "Erkole, Melih Naci"]
[Result "1-0"]
[ECO "A36"]
[WhiteElo "1898"]
[BlackElo "1697"]
[Annotator "NA"]
[PlyCount "85"]
[EventDate "2019.07.22"]
[EventType "team-tourn"]
[EventCountry "TUR"]
[SourceTitle "playchess.com"]
[Source "ChessBase"]
[SourceQuality "1"]
[TimeControl "5400+30"]

1. c4 {[%emt 0:00:30]} c5 {[%emt 0:00:30]} 2. Nc3 {[%emt 0:00:00]} Nc6 {[%emt 0:00:30]} 3. g3 {[%emt 0:00:00]} g6 {[%emt 0:00:30]} 4. Bg2 {[%emt 0:00:00]} Bg7 {[%emt 0:00:00]} 5. e4 {[%emt 0:00:00]} d6 {[%emt 0:00:00]} 6. Nge2 {[%emt 0:00:30]} Nf6 {[%emt 0:00:30]} 7. d3 {[%emt 0:00:30]} O-O {[%emt 0:00:00]} 8. O-O {[%emt 0:00:00]} e6 {[%emt 0:11:00]} 9. h3 {[%emt 0:01:00]} Ne8 {[%emt 0:04:30]} 10. Be3 {[%emt 0:00:30]} Nd4 {[%emt 0:00:30]} 11. Qd2 {[%emt 0:00:30]} Bd7 {[%emt 0:03:30]} 12. Bh6 {[%emt 0:07:30]} Qa5 {[%emt 0:04:30]} 13. Bxg7 {[%emt 0:00:30]} Kxg7 {[%emt 0:08:30]} 14. h4 {[%emt 0:07:30]} Rb8 {[%emt 0:11:30]} 15. Nf4 {[%emt 0:21:30]} a6 {[%emt 0:02:30]} 16. h5 {[%emt 0:04:30]} b5 {[%emt 0:00:30]} 17. b3 {[%emt 0:08:30]} g5 {[%emt 0:06:30]} 18. h6+ {[%emt 0:02:30]} Kg8 {[%emt 0:04:30]} 19. Nh5 {[%emt 0:03:30]} Qxc3 {[%emt 0:01:30]} 20. Qxg5+ {[%emt 0:00:30]} Kh8 {[%emt 0:00:30]} 21. Qe7 {[%emt 0:00:30]} Rg8 {[%emt 0:10:30]} 22. Qxd7 {[%emt 0:01:30]} Ne2+ {[%emt 0:05:30]} 23. Kh2 {[%emt 0:01:30]} Nf6 {[%emt 0:20:58]} 24. Qxf7 {[%emt 0:04:30]} Rbf8 {[%emt 0:00:00]} 25. Qg7+ {[%emt 0:00:30]} Rxg7 {[%emt 0:00:36]} 26. hxg7+ {[%emt 0:00:30]} Kg8 {[%emt 0:00:00]} 27. gxf8=Q+ {[%emt 0:00:00]} Kxf8 {[%emt 0:00:00]} 28. Nxf6 {[%emt 0:01:00]} Qxf6 {[%emt 0:00:00]} 29. cxb5 {[%emt 0:01:30]} axb5 {[%emt 0:00:00]} 30. a4 {[%emt 0:00:00]} bxa4 {[%emt 0:01:42]} 31. bxa4 {[%emt 0:00:00]} Nd4 {[%emt 0:03:11]} 32. a5 {[%emt 0:00:30]} Qh6+ {[%emt 0:00:48]} 33. Bh3 {[%emt 0:00:30]} Nf3+ {[%emt 0:00:25]} 34. Kg2 {[%emt 0:00:30]} Ng5 {[%emt 0:00:07]} 35. Bg4 {[%emt 0:01:30]} Qg7 {[%emt 0:01:11]} 36. a6 {[%emt 0:00:30]} Qa7 {[%emt 0:00:01]} 37. Rfb1 {[%emt 0:00:30]} c4 {[%emt 0:00:15]} 38. Rb7 {[%emt 0:02:30]} Qd4 {[%emt 0:00:22]} 39. a7 {[%emt 0:00:30]} Qxa1 {[%emt 0:00:35]} 40. Rb8+ {[%emt 0:00:30]} Kg7 {[%emt 0:00:00]} 41. a8=Q {[%emt 0:00:00]} Qf6 {[%emt 0:01:12]} 42. Rb7+ {[%emt 0:01:00]} Kh6 {[%emt 0:00:16]} 43. Qe8 {[%emt 0:00:30]} 1-0

[Event "Turkish Second League 2019"]
[Site "Konya"]
[Date "2019.07.27"]
[Round "8"]
[White "Abdullahoglu, Diren Can"]
[Black "Gurbuz, Bayram"]
[Result "0-1"]
[ECO "B07"]
[WhiteElo "1889"]
[BlackElo "1906"]
[Annotator "NA"]
[PlyCount "89"]
[EventDate "2019.07.22"]
[EventType "team-tourn"]
[EventCountry "TUR"]
[SourceTitle "playchess.com"]
[Source "ChessBase"]
[SourceQuality "1"]
[TimeControl "5400+30"]

1. d4 d6 2. Nf3 g6 {[%emt 0:00:00]} 3. e4 {[%emt 0:00:30]} Nf6 {[%emt 0:00:30]} 4. Bd3 {[%emt 0:02:30]} Bg7 {[%emt 0:00:30]} 5. O-O {[%emt 0:00:30]} O-O {[%emt 0:00:30]} 6. Re1 {[%emt 0:04:30]} Bg4 {[%emt 0:04:30]} 7. Nbd2 {[%emt 0:06:30]} e5 {[%emt 0:04:30]} 8. c3 {[%emt 0:05:30]} c6 {[%emt 0:02:30]} 9. h3 {[%emt 0:07:30]} Bxf3 {[%emt 0:00:30]} 10. Nxf3 {[%emt 0:04:30]} Nbd7 {[%emt 0:00:30]} 11. Qb3 {[%emt 0:03:30]} Qc7 {[%emt 0:02:30]} 12. Qa3 {[%emt 0:04:30]} Rfe8 {[%emt 0:02:30]} 13. b4 {[%emt 0:15:30]} d5 {[%emt 0:04:30]} 14. Nxe5 {[%emt 0:20:30]} dxe4 {[%emt 0:10:30]} 15. Nxd7 {[%emt 0:02:25]} Qxd7 {[%emt 0:03:30]} 16. Bc2 {[%emt 0:01:18]} a5 {[%emt 0:07:30]} 17. bxa5 {[%emt 0:04:59]} Bf8 {[%emt 0:00:30]} 18. Qb3 {[%emt 0:00:38]} Rxa5 {[%emt 0:00:30]} 19. a4 {[%emt 0:00:47]} b5 {[%emt 0:02:30]} 20. Bb2 {[%emt 0:02:04]} Bd6 {[%emt 0:04:30]} 21. axb5 {[%emt 0:02:27]} Rxb5 {[%emt 0:00:30]} 22. Qa2 {[%emt 0:00:00]} Rg5 {[%emt 0:01:30]} 23. Bc1 {[%emt 0:02:19]} Qxh3 {[%emt 0:00:30]} 24. Bxg5 {[%emt 0:01:15]} Qh2+ {[%emt 0:00:30]} 25. Kf1 {[%emt 0:00:00]} Qh1+ {[%emt 0:00:30]} 26. Ke2 {[%emt 0:00:00]} Qh5+ {[%emt 0:00:30]} 27. Kf1 {[%emt 0:01:14]} Qxg5 {[%emt 0:01:30]} 28. Bb3 {[%emt 0:02:52]} Rf8 {[%emt 0:01:30]} 29. Re3 {[%emt 0:02:32]} Ng4 {[%emt 0:02:30]} 30. Rh3 {[%emt 0:00:42]} Qf4 {[%emt 0:05:30]} 31. Bd1 {[%emt 0:01:20]} Nf6 {[%emt 0:03:30]} 32. Qe2 {[%emt 0:00:55]} Rb8 {[%emt 0:01:30]} 33. Kg1 {[%emt 0:01:09]} Qf5 {[%emt 0:02:30]} 34. c4 {[%emt 0:00:49]} c5 {[%emt 0:00:30]} 35. g4 {[%emt 0:00:51]} Qg5 {[%emt 0:01:30]} 36. d5 {[%emt 0:00:48]} Be5 {[%emt 0:00:00]} 37. Ra6 {[%emt 0:00:30]} Bd4 {[%emt 0:00:00]} 38. Kg2 {[%emt 0:00:28]} Rb2 {[%emt 0:00:30]} 39. Bc2 {[%emt 0:00:22]} Nxg4 {[%emt 0:01:30]} 40. Rg3 {[%emt 0:00:10]} h5 {[%emt 0:00:30]} 41. Qxe4 {[%emt 0:00:59]} Rxc2 {[%emt 0:06:30]} 42. Qxc2 {[%emt 0:00:22]} h4 {[%emt 0:00:30]} 43. Rxg4 {[%emt 0:00:55]} Qxg4+ {[%emt 0:00:30]} 44. Kf1 {[%emt 0:00:17]} h3 {[%emt 0:00:30]} 45. Ke1 {[%emt 0:01:01]} 0-1

[Event "Turkish Second League 2019"]
[Site "Konya"]
[Date "2019.07.27"]
[Round "8"]
[White "Ozbek, Busra"]
[Black "Kaygisiz, Ilayda"]
[Result "1-0"]
[ECO "D03"]
[WhiteElo "1866"]
[BlackElo "1775"]
[Annotator "NA"]
[PlyCount "127"]
[EventDate "2019.07.22"]
[EventType "team-tourn"]
[EventCountry "TUR"]
[SourceTitle "playchess.com"]
[Source "ChessBase"]
[SourceQuality "1"]
[TimeControl "5400+30"]

1. d4 Nf6 2. Nf3 {[%emt 0:00:00]} g6 {[%emt 0:00:00]} 3. Bg5 {[%emt 0:00:30]} Bg7 {[%emt 0:00:30]} 4. Nbd2 {[%emt 0:00:30]} d5 {[%emt 0:00:00]} 5. c3 {[%emt 0:00:30]} O-O {[%emt 0:01:00]} 6. e3 {[%emt 0:00:00]} c5 {[%emt 0:00:00]} 7. Be2 {[%emt 0:00:00]} Qb6 {[%emt 0:00:00]} 8. Qb3 {[%emt 0:05:30]} Nc6 {[%emt 0:00:30]} 9. O-O {[%emt 0:01:30]} Rd8 {[%emt 0:05:30]} 10. h3 {[%emt 0:12:30]} Bf5 {[%emt 0:12:30]} 11. a4 {[%emt 0:06:30]} Ne4 {[%emt 0:09:30]} 12. Bf4 {[%emt 0:19:30]} Nxd2 {[%emt 0:02:30]} 13. Nxd2 {[%emt 0:00:00]} e5 {[%emt 0:01:30]} 14. dxe5 {[%emt 0:04:00]} Nxe5 {[%emt 0:02:30]} 15. Bxe5 {[%emt 0:09:30]} Bxe5 {[%emt 0:01:30]} 16. g4 {[%emt 0:01:30]} Bc8 {[%emt 0:01:30]} 17. Qxb6 {[%emt 0:02:30]} axb6 {[%emt 0:00:30]} 18. Nf3 {[%emt 0:00:00]} Bg7 {[%emt 0:00:30]} 19. Rfd1 {[%emt 0:02:00]} f5 {[%emt 0:08:30]} 20. Ne1 {[%emt 0:08:30]} Be6 {[%emt 0:02:30]} 21. Rd2 {[%emt 0:03:30]} c4 {[%emt 0:13:30]} 22. Nc2 {[%emt 0:04:05]} Bf6 {[%emt 0:06:30]} 23. Kg2 {[%emt 0:01:04]} Ra5 {[%emt 0:02:30]} 24. Bf3 {[%emt 0:05:45]} b5 {[%emt 0:14:59]} 25. axb5 {[%emt 0:03:02]} Rxb5 {[%emt 0:00:02]} 26. Na3 {[%emt 0:00:00]} Ra5 {[%emt 0:00:49]} 27. Nc2 {[%emt 0:02:06]} Rxa1 {[%emt 0:02:07]} 28. Nxa1 {[%emt 0:00:03]} Ra8 {[%emt 0:00:24]} 29. Nc2 {[%emt 0:00:07]} Ra2 {[%emt 0:00:20]} 30. Nd4 {[%emt 0:00:36]} Bxd4 {[%emt 0:00:00]} 31. exd4 {[%emt 0:00:51]} Kf7 {[%emt 0:04:42]} 32. gxf5 {[%emt 0:01:52]} gxf5 {[%emt 0:00:03]} 33. Re2 {[%emt 0:00:00]} Kf6 {[%emt 0:01:31]} 34. Kg3 {[%emt 0:00:00]} Bf7 {[%emt 0:01:00]} 35. Kf4 {[%emt 0:00:19]} Ra5 {[%emt 0:01:25]} 36. Kg3 {[%emt 0:03:40]} Ra2 {[%emt 0:03:27]} 37. Kf4 {[%emt 0:00:58]} Ra5 {[%emt 0:00:41]} 38. h4 {[%emt 0:00:06]} h6 {[%emt 0:00:36]} 39. Re5 {[%emt 0:02:40]} Be6 {[%emt 0:00:39]} 40. Bh5 {[%emt 0:01:04]} Rb5 {[%emt 0:01:00]} 41. Re2 {[%emt 0:00:06]} Rb3 {[%emt 0:00:00]} 42. f3 {[%emt 0:00:58]} Bg8 {[%emt 0:02:40]} 43. Be8 {[%emt 0:01:12]} Rb6 {[%emt 0:00:30]} 44. Rg2 {[%emt 0:00:29]} Bh7 {[%emt 0:00:29]} 45. h5 {[%emt 0:00:24]} Ra6 {[%emt 0:00:56]} 46. Bg6 {[%emt 0:00:39]} Bg8 {[%emt 0:00:18]} 47. Bxf5 {[%emt 0:01:05]} Bf7 {[%emt 0:00:03]} 48. Bg6 {[%emt 0:00:21]} Be6 {[%emt 0:00:14]} 49. Re2 {[%emt 0:00:16]} Rb6 {[%emt 0:00:22]} 50. Kg3 {[%emt 0:00:25]} Ra6 {[%emt 0:00:36]} 51. f4 {[%emt 0:00:27]} Bd7 {[%emt 0:00:50]} 52. f5 {[%emt 0:00:59]} Ra2 {[%emt 0:01:07]} 53. Kf4 {[%emt 0:00:19]} Ra1 {[%emt 0:00:16]} 54. Re5 {[%emt 0:01:48]} Rf1+ {[%emt 0:00:06]} 55. Kg4 {[%emt 0:00:00]} Rg1+ {[%emt 0:00:19]} 56. Kh4 {[%emt 0:00:00]} Rh1+ {[%emt 0:00:20]} 57. Kg3 {[%emt 0:00:03]} Bc6 {[%emt 0:00:20]} 58. Re6+ {[%emt 0:00:40]} Kg7 {[%emt 0:00:53]} 59. f6+ {[%emt 0:00:11]} Kf8 {[%emt 0:00:12]} 60. Rd6 {[%emt 0:01:22]} Re1 {[%emt 0:01:57]} 61. Rd8+ {[%emt 0:00:04]} Be8 {[%emt 0:00:00]} 62. f7 {[%emt 0:00:15]} Re3+ {[%emt 0:00:45]} 63. Kf2 {[%emt 0:00:05]} Re7 {[%emt 0:00:20]} 64. Rxe8+ {[%emt 0:00:07]} 1-0

[Event "Turkish Second League 2019"]
[Site "Konya"]
[Date "2019.07.27"]
[Round "8"]
[White "Ilkimen, Mehmet Emre"]
[Black "Can, Furkan"]
[Result "0-1"]
[ECO "B12"]
[WhiteElo "1863"]
[BlackElo "1900"]
[Annotator "NA"]
[PlyCount "136"]
[EventDate "2019.07.22"]
[EventType "team-tourn"]
[EventCountry "TUR"]
[SourceTitle "playchess.com"]
[Source "ChessBase"]
[SourceQuality "1"]
[TimeControl "5400+30"]

1. e4 {[%emt 0:00:30]} c6 {[%emt 0:00:30]} 2. d4 {[%emt 0:00:30]} d5 {[%emt 0:00:30]} 3. e5 {[%emt 0:01:30]} c5 {[%emt 0:00:30]} 4. c3 {[%emt 0:01:30]} Nc6 {[%emt 0:00:30]} 5. Na3 {[%emt 0:21:30]} cxd4 {[%emt 0:06:30]} 6. cxd4 {[%emt 0:00:30]} Qb6 {[%emt 0:00:30]} 7. Nc2 {[%emt 0:14:30]} Bf5 {[%emt 0:12:30]} 8. Bd3 {[%emt 0:02:30]} Bxd3 {[%emt 0:01:30]} 9. Qxd3 {[%emt 0:00:30]} e6 {[%emt 0:00:00]} 10. Ne2 {[%emt 0:04:30]} Nb4 {[%emt 0:03:00]} 11. Nxb4 {[%emt 0:00:30]} Bxb4+ {[%emt 0:00:30]} 12. Bd2 {[%emt 0:00:30]} Bxd2+ {[%emt 0:01:30]} 13. Qxd2 {[%emt 0:01:30]} Ne7 {[%emt 0:00:30]} 14. O-O {[%emt 0:00:00]} O-O {[%emt 0:00:00]} 15. Rfc1 {[%emt 0:06:00]} Rac8 {[%emt 0:04:00]} 16. Rxc8 {[%emt 0:01:30]} Rxc8 {[%emt 0:00:30]} 17. Rc1 {[%emt 0:00:30]} Rxc1+ {[%emt 0:00:30]} 18. Qxc1 {[%emt 0:01:30]} Nc6 {[%emt 0:00:00]} 19. Qd2 {[%emt 0:11:30]} h6 {[%emt 0:02:00]} 20. g4 {[%emt 0:05:30]} Qd8 {[%emt 0:03:30]} 21. h3 {[%emt 0:06:02]} Qh4 {[%emt 0:02:30]} 22. Kg2 {[%emt 0:00:23]} h5 {[%emt 0:00:30]} 23. f3 {[%emt 0:03:00]} hxg4 {[%emt 0:00:30]} 24. hxg4 {[%emt 0:00:33]} Qd8 {[%emt 0:03:30]} 25. Ng3 {[%emt 0:02:27]} Qb6 {[%emt 0:00:30]} 26. Ne2 {[%emt 0:00:16]} Qa6 {[%emt 0:00:30]} 27. a3 {[%emt 0:04:18]} Qc4 {[%emt 0:00:30]} 28. Kf2 {[%emt 0:00:13]} Qb3 {[%emt 0:02:30]} 29. Nf4 {[%emt 0:01:20]} Qc4 {[%emt 0:05:30]} 30. Ne2 {[%emt 0:00:09]} Qa4 {[%emt 0:00:30]} 31. Qc3 {[%emt 0:01:31]} Qd1 {[%emt 0:01:30]} 32. b4 {[%emt 0:02:03]} Qa4 {[%emt 0:00:30]} 33. f4 {[%emt 0:02:16]} a5 {[%emt 0:03:30]} 34. bxa5 {[%emt 0:00:45]} Qxa5 {[%emt 0:00:30]} 35. Ke3 {[%emt 0:01:43]} Qa4 {[%emt 0:02:30]} 36. Kf2 {[%emt 0:01:12]} Qc4 {[%emt 0:08:30]} 37. Qe3 {[%emt 0:01:20]} Qc2 {[%emt 0:00:30]} 38. Kf3 {[%emt 0:01:42]} b5 {[%emt 0:04:30]} 39. Ng3 {[%emt 0:00:45]} Qd1+ {[%emt 0:04:30]} 40. Ne2 {[%emt 0:00:05]} Na5 {[%emt 0:00:30]} 41. Qc1 {[%emt 0:00:55]} Qxc1 {[%emt 0:01:30]} 42. Nxc1 {[%emt 0:00:33]} Nc4 {[%emt 0:00:00]} 43. Ke2 {[%emt 0:00:32]} Nxa3 {[%emt 0:00:00]} 44. Kd3 {[%emt 0:00:09]} b4 {[%emt 0:00:00]} 45. Kd2 {[%emt 0:00:43]} g5 {[%emt 0:00:00]} 46. fxg5 {[%emt 0:00:24]} Kg7 {[%emt 0:00:30]} 47. Nd3 {[%emt 0:00:37]} b3 {[%emt 0:00:00]} 48. Kc3 {[%emt 0:00:19]} Nb5+ {[%emt 0:00:00]} 49. Kxb3 {[%emt 0:00:08]} Nxd4+ {[%emt 0:00:30]} 50. Kc3 {[%emt 0:00:00]} Nf3 {[%emt 0:00:00]} 51. Nf4 {[%emt 0:00:20]} Nxe5 {[%emt 0:00:00]} 52. g6 {[%emt 0:00:56]} Nxg6 {[%emt 0:00:00]} 53. Nh5+ {[%emt 0:00:07]} Kh6 {[%emt 0:00:00]} 54. Kd4 {[%emt 0:00:00]} Kg5 {[%emt 0:00:30]} 55. Ke3 {[%emt 0:01:06]} Kxg4 {[%emt 0:00:00]} 56. Nf6+ {[%emt 0:00:06]} Kf5 {[%emt 0:00:00]} 57. Nd7 {[%emt 0:00:00]} e5 {[%emt 0:00:00]} 58. Nc5 {[%emt 0:00:00]} d4+ {[%emt 0:00:00]} 59. Kf3 {[%emt 0:00:28]} Nf4 {[%emt 0:00:30]} 60. Ne4 {[%emt 0:00:00]} Ke6 {[%emt 0:00:30]} 61. Ng5+ {[%emt 0:00:00]} Kf5 {[%emt 0:01:30]} 62. Nxf7 {[%emt 0:00:26]} e4+ {[%emt 0:00:00]} 63. Kf2 {[%emt 0:00:00]} e3+ {[%emt 0:00:00]} 64. Kf3 {[%emt 0:00:15]} e2 {[%emt 0:00:00]} 65. Nd6+ {[%emt 0:00:23]} Ke6 {[%emt 0:00:00]} 66. Kf2 {[%emt 0:00:41]} Kxd6 {[%emt 0:00:30]} 67. Ke1 {[%emt 0:00:00]} d3 {[%emt 0:00:30]} 68. Kd2 {[%emt 0:00:00]} Ng2 {[%emt 0:00:00]} 0-1

[Event "Turkish Second League 2019"]
[Site "Konya"]
[Date "2019.07.27"]
[Round "8"]
[White "Ozcan, Kadir Kutay"]
[Black "Boz, Fatih Emre"]
[Result "1-0"]
[ECO "B76"]
[WhiteElo "1832"]
[BlackElo "1854"]
[Annotator "NA"]
[PlyCount "45"]
[EventDate "2019.07.22"]
[EventType "team-tourn"]
[EventCountry "TUR"]
[SourceTitle "playchess.com"]
[Source "ChessBase"]
[SourceQuality "1"]
[TimeControl "5400+30"]

1. e4 {[%emt 0:00:30]} c5 {[%emt 0:00:30]} 2. Nf3 {[%emt 0:00:00]} d6 {[%emt 0:00:00]} 3. d4 {[%emt 0:06:00]} cxd4 {[%emt 0:00:00]} 4. Nxd4 {[%emt 0:00:30]} Nf6 {[%emt 0:00:30]} 5. Nc3 {[%emt 0:00:30]} g6 {[%emt 0:00:30]} 6. Be3 {[%emt 0:00:30]} Bg7 {[%emt 0:00:30]} 7. f3 {[%emt 0:00:30]} O-O {[%emt 0:00:30]} 8. Qd2 {[%emt 0:00:30]} Nc6 {[%emt 0:00:30]} 9. O-O-O {[%emt 0:00:30]} d5 {[%emt 0:00:30]} 10. Qe1 {[%emt 0:00:30]} e5 {[%emt 0:00:30]} 11. Nxc6 {[%emt 0:00:30]} bxc6 {[%emt 0:00:30]} 12. exd5 {[%emt 0:00:30]} Nxd5 {[%emt 0:00:30]} 13. Bc4 {[%emt 0:00:30]} Be6 {[%emt 0:00:30]} 14. h4 {[%emt 0:09:30]} f5 {[%emt 0:10:30]} 15. h5 {[%emt 0:04:30]} f4 {[%emt 0:28:30]} 16. Bc5 {[%emt 0:03:30]} Re8 {[%emt 0:05:30]} 17. hxg6 {[%emt 0:00:30]} hxg6 {[%emt 0:00:30]} 18. Qe4 {[%emt 0:03:30]} Qa5 {[%emt 0:27:30]} 19. Nxd5 {[%emt 0:01:30]} cxd5 {[%emt 0:00:00]} 20. Bxd5 {[%emt 0:00:00]} Rac8 {[%emt 0:03:00]} 21. Qxg6 {[%emt 0:11:00]} Bxd5 {[%emt 0:05:14]} 22. Rxd5 {[%emt 0:01:30]} Qc7 {[%emt 0:05:58]} 23. Qh7+ {[%emt 0:03:30]} 1-0

[Event "Turkish Second League 2019"]
[Site "Konya"]
[Date "2019.07.27"]
[Round "8"]
[White "Ucucu, Salih"]
[Black "Acar, Cengiz Can"]
[Result "1-0"]
[ECO "B01"]
[WhiteElo "1819"]
[BlackElo "1756"]
[Annotator "NA"]
[PlyCount "61"]
[EventDate "2019.07.22"]
[EventType "team-tourn"]
[EventCountry "TUR"]
[SourceTitle "playchess.com"]
[Source "ChessBase"]
[SourceQuality "1"]
[TimeControl "5400+30"]

1. e4 d5 {[%emt 0:00:30]} 2. exd5 {[%emt 0:01:00]} Qxd5 {[%emt 0:00:30]} 3. Nc3 {[%emt 0:00:30]} Qd6 {[%emt 0:00:00]} 4. d4 {[%emt 0:00:00]} c6 {[%emt 0:00:00]} 5. Nf3 {[%emt 0:00:00]} Bg4 {[%emt 0:00:00]} 6. h3 {[%emt 0:00:00]} Bxf3 {[%emt 0:04:00]} 7. Qxf3 {[%emt 0:01:00]} Qxd4 {[%emt 0:00:30]} 8. Bf4 {[%emt 0:00:00]} Qd8 {[%emt 0:05:30]} 9. Nb5 {[%emt 0:08:00]} Na6 {[%emt 0:06:30]} 10. Rd1 {[%emt 0:12:30]} Qa5+ {[%emt 0:11:30]} 11. c3 {[%emt 0:07:30]} Rd8 {[%emt 0:09:30]} 12. Rxd8+ {[%emt 0:03:30]} Qxd8 {[%emt 0:03:30]} 13. Qe3 {[%emt 0:06:30]} e6 {[%emt 0:14:30]} 14. Qxa7 {[%emt 0:07:30]} Qc8 {[%emt 0:13:30]} 15. Nd6+ {[%emt 0:01:30]} Bxd6 {[%emt 0:00:30]} 16. Bxd6 {[%emt 0:00:30]} Nc7 {[%emt 0:04:30]} 17. c4 {[%emt 0:12:30]} Ne7 {[%emt 0:03:30]} 18. Bd3 {[%emt 0:02:30]} Qd8 {[%emt 0:09:13]} 19. Qd4 {[%emt 0:04:30]} f6 {[%emt 0:04:58]} 20. O-O {[%emt 0:02:30]} e5 {[%emt 0:02:26]} 21. Qc5 {[%emt 0:01:30]} Ne6 {[%emt 0:02:00]} 22. Qa3 {[%emt 0:02:30]} Nd4 {[%emt 0:02:01]} 23. f4 {[%emt 0:00:30]} Nef5 {[%emt 0:00:30]} 24. fxe5 {[%emt 0:01:30]} Nxd6 {[%emt 0:01:35]} 25. exd6 {[%emt 0:00:30]} O-O {[%emt 0:00:54]} 26. Qc5 {[%emt 0:00:30]} Ne6 {[%emt 0:00:06]} 27. Bxh7+ {[%emt 0:01:30]} Kxh7 {[%emt 0:00:30]} 28. Qf5+ {[%emt 0:00:30]} Kh8 {[%emt 0:00:30]} 29. Qxe6 {[%emt 0:00:00]} Re8 {[%emt 0:00:00]} 30. Qg4 {[%emt 0:00:00]} Qxd6 {[%emt 0:00:00]} 31. Qh5+ {[%emt 0:00:30]} 1-0